bitfinex-derivatives/quotes_SOLF0:USTF0_20251201
["timestamp","ask_amount","ask_price","bid_price","bid_amount"]
[1764609799560,118.0,124.39,124.36,7.2374]
[1764609801962,118.0,124.38,124.35,0.05276332]
[1764609803468,7.237,124.37,124.35,0.05276332]
[1764609810965,7.2375,124.36,124.35,0.05276332]
[1764609811772,118.0,124.37,124.35,0.05276332]
[1764609811973,120.34464606,124.37,124.35,0.05276332]
[1764609812174,125.2372,124.37,124.35,0.05276332]
[1764609813571,127.58319746,124.36,124.35,0.05276332]
[1764609813878,127.58319746,124.36,124.31,7.2404]
[1764609813879,125.68260617,124.36,124.31,7.2404]
[1764609814171,7.2387,124.34,124.3,7.48264997]
[1764609814371,118.0,124.35,124.3,7.48264997]
[1764609814567,118.0,124.35,124.31,7.48264997]
[1764609814969,0.05489866,124.34,124.32,0.05271]
[1764609815672,118.0,124.4,124.32,0.05271]
[1764609815878,118.0,124.4,124.34,7.48264997]
[1764609815879,120.34666204,124.4,124.34,7.48264997]
[1764609816769,120.34666204,124.4,124.36,0.05534709]
[1764609817377,7.2365,124.38,124.36,0.05534709]
[1764609823288,7.2369,124.37,124.36,0.05534709]
[1764609825284,9.58534265,124.37,124.36,0.05534709]
[1764609826184,7.2377,124.36,124.32,7.48264997]
[1764609826384,125.2377,124.36,124.32,7.48264997]
[1764609827285,0.05306353,124.35,124.33,0.06079874]
[1764609830186,7.29156353,124.35,124.33,0.06079874]
[1764609830586,9.67259723,124.35,124.33,0.06079874]
[1764609833392,15.00950594,124.35,124.33,0.06079874]
[1764609833591,7.2403,124.32,124.29,7.48264997]
[1764609833792,7.2403,124.32,124.28,7.48264997]
[1764609834488,7.2403,124.32,124.27,17.23060932]
[1764609834489,76.91794241,124.33,124.27,7.48264997]
[1764609834689,0.05112834,124.31,124.29,0.05795929]
[1764609837193,7.29162834,124.31,124.29,0.05795929]
[1764609837489,3.41798895,124.3,124.29,0.05795929]
[1764609837691,5.79902265,124.3,124.29,0.05795929]
[1764609839197,3.41798895,124.27,124.23,7.48264997]
[1764609839991,0.05516969,124.26,124.24,0.05851702]
[1764609842686,0.05516969,124.26,124.24,7.30251702]
[1764609844701,0.05516969,124.26,124.25,7.48264997]
[1764609844894,0.05516969,124.26,124.24,7.30251702]
[1764609844895,0.05516969,124.26,124.24,14.78516699]
[1764609845299,0.05516969,124.26,124.25,14.72654997]
[1764609845496,14.4767,124.35,124.25,14.72654997]
[1764609845497,7.2401,124.32,124.25,117.69468895]
[1764609845698,7.2401,124.32,124.27,3.41798895]
[1764609845902,3.41798895,124.34,124.28,14.72463982]
[1764609846200,7.2395,124.33,124.28,7.2418]
[1764609846402,0.06112904,124.32,124.29,0.05319883]
[1764609847406,0.06112904,124.32,124.29,7.29459883]
[1764609849201,0.06112904,124.32,124.29,0.05319883]
[1764609850304,7.30112904,124.32,124.29,0.05319883]
[1764609850508,10.71911799,124.32,124.29,0.05319883]
[1764609850803,3.47911799,124.32,124.29,0.05319883]
[1764609852108,3.41798895,124.3,124.29,0.05319883]
[1764609852306,121.41798895,124.3,124.29,0.05319883]
[1764609858012,128.65898895,124.3,124.29,0.05319883]
[1764609860807,125.241,124.3,124.29,0.05319883]
[1764609863704,7.30142904,124.32,124.29,0.05319883]
[1764609866704,7.30142904,124.32,124.29,7.29479883]
[1764609866905,0.06112904,124.32,124.29,0.05319883]
[1764609867413,0.06112904,124.32,124.3,7.2408]
[1764609867615,0.06112904,124.32,124.31,3.41798895]
[1764609868222,0.06112904,124.32,124.29,10.95485469]
[1764609869218,0.06112904,124.32,124.29,123.60005469]
[1764609870106,0.06112904,124.32,124.29,120.18206574]
[1764609870312,0.06112904,124.32,124.29,123.60005469]
[1764609871717,0.06112904,124.32,124.29,10.95485469]
[1764609872518,0.06112904,124.32,124.31,7.2404]
[1764609873914,0.06112904,124.32,124.31,14.72406691]
[1764609874319,194.4575,124.37,124.32,7.2395]
[1764609875026,125.2375,124.37,124.32,7.2395]
[1764609875227,0.05392683,124.36,124.33,7.29771414]
[1764609875630,0.05392683,124.36,124.33,0.05851414]
[1764609875928,10.70961578,124.36,124.33,0.05851414]
[1764609878620,3.47191578,124.36,124.33,0.05851414]
[1764609878826,7.2382,124.35,124.33,0.05851414]
[1764609879225,3.47191578,124.36,124.33,0.05851414]
[1764609880335,128.70971578,124.36,124.33,0.05851414]
[1764609885935,121.47191578,124.36,124.33,7.29741414]
[1764609886934,118.05392683,124.36,124.33,7.29741414]
[1764609887528,118.05392683,124.36,124.34,7.2384]
[1764609889735,0.05392683,124.36,124.34,7.2384]
[1764609893534,0.05392683,124.36,124.35,7.2381]
[1764609897131,187.2,124.41,124.34,76.64366691]
[1764609897731,192.53288187,124.41,124.37,7.2366]
[1764609898026,192.53288187,124.41,124.38,0.05369663]
[1764609898230,7.2358,124.39,124.38,0.05369663]
[1764609899230,7.2352,124.4,124.38,0.05369663]
[1764609900334,118.0,124.41,124.38,0.05369663]
[1764609900532,123.33288187,124.42,124.38,0.05369663]
[1764609900834,5.33288187,124.4,124.38,0.05369663]
[1764609901249,118.0,124.42,124.38,0.05369663]
[1764609901741,120.36243483,124.42,124.38,0.05369663]
[1764609902043,5.33288187,124.41,124.38,0.05369663]
[1764609902540,118.0,124.42,124.38,0.05369663]
[1764609902742,120.36058916,124.42,124.38,0.05369663]
[1764609903134,7.2354,124.4,124.38,0.05369663]
[1764609903343,12.56828187,124.4,124.38,0.05369663]
[1764609909138,7.2354,124.4,124.38,0.05369663]
[1764609909343,12.56828187,124.4,124.38,0.05369663]
[1764609909544,7.2354,124.4,124.38,0.05369663]
[1764609912846,69.14,124.41,124.38,0.05369663]
[1764609914556,76.3747,124.41,124.38,0.05369663]
[1764609914752,2.36058916,124.42,124.38,0.05369663]
[1764609915255,9.59498916,124.42,124.38,0.05369663]
[1764609915457,7.2344,124.42,124.38,0.05369663]
[1764609915653,71.48058916,124.44,124.38,0.05369663]
[1764609915859,118.0,124.43,124.38,7.53736354]
[1764609916357,125.2335,124.43,124.39,7.2357]
[1764609916554,125.2335,124.43,124.39,14.71936691]
[1764609917054,118.0,124.43,124.39,14.71936691]
[1764609917256,118.0,124.46,124.4,7.2352]
[1764609917458,120.35347973,124.46,124.42,0.05620795]
[1764609918560,7.2329,124.44,124.42,0.05620795]
[1764609921059,7.2329,124.44,124.42,0.05620795]
[1764609921454,7.2323,124.45,124.42,0.05620795]
[1764609921856,123.33288187,124.46,124.42,0.05620795]
[1764609922665,7.233,124.44,124.42,0.05620795]
[1764609922866,5.33288187,124.44,124.42,0.05620795]
[1764609924372,7.2334,124.43,124.42,0.05620795]
[1764609924662,125.2334,124.43,124.42,0.05620795]
[1764609925453,7.2346,124.41,124.36,14.73357261]
[1764609926369,7.2346,124.41,124.37,0.0539378]
[1764609926665,0.051233,124.4,124.38,7.49667261]
[1764609926866,0.05709595,124.4,124.38,7.54939445]
[1764609927053,0.05709595,124.4,124.38,0.05272184]
[1764609935375,0.05709595,124.4,124.38,7.54939445]
[1764609937375,20.0808176,124.54,124.38,7.54939445]
[1764609937376,118.0,124.46,124.38,122.60193116]
[1764609937580,120.35632595,124.46,124.41,7.50057126]
[1764609937875,120.35632595,124.46,124.41,14.73467126]
[1764609938575,120.35632595,124.46,124.42,0.05860701]
[1764609939780,127.58852595,124.46,124.42,7.29250701]
[1764609940082,125.2322,124.46,124.42,14.79307827]
[1764609940380,125.2322,124.46,124.42,7.29250701]
[1764609940784,125.2322,124.46,124.42,14.79307827]
[1764609941279,125.2322,124.46,124.42,7.29250701]
[1764609943874,7.2322,124.46,124.43,7.2334]
[1764609945878,7.2322,124.46,124.42,0.05860701]
[1764609946979,7.2322,124.46,124.42,7.29230701]
[1764609947177,7.2326,124.45,124.42,0.05860701]
[1764609949177,9.60755669,124.45,124.42,0.05860701]
[1764609950376,7.2329,124.44,124.42,0.05860701]
[1764609951476,9.60477144,124.45,124.42,0.05860701]
[1764609952484,7.2329,124.44,124.42,0.05860701]
[1764609955381,125.232,124.46,124.42,7.29250701]
[1764609957691,125.232,124.46,124.42,14.79307827]
[1764609958289,118.0,124.46,124.42,14.79307827]
[1764609958686,120.39922345,124.46,124.42,14.79307827]
[1764609959189,127.63152345,124.46,124.42,14.79307827]
[1764609959390,125.2323,124.46,124.42,7.29250701]
[1764609959590,125.2323,124.46,124.42,14.79307827]
[1764609961292,118.0,124.5,124.45,7.50057126]
[1764609961495,2.39947685,124.52,124.46,7.55654845]
[1764609961698,2.39947685,124.51,124.46,7.55654845]
[1764609961882,10.64020436,124.49,124.46,0.05597719]
[1764609962086,2.39947685,124.48,124.46,0.05597719]
[1764609962589,121.41010436,124.49,124.46,0.05597719]
[1764609962783,2.40026708,124.48,124.46,0.05597719]
[1764609963494,7.2311,124.47,124.46,0.05597719]
[1764609967601,125.2303,124.49,124.46,0.05597719]
[1764609968191,7.2291,124.51,124.46,0.05597719]
[1764609968393,9.62821267,124.51,124.46,0.05597719]
[1764609968593,9.62821267,124.51,124.46,7.55654845]
[1764609969199,3.41010436,124.5,124.47,7.2311]
[1764609970099,3.41010436,124.48,124.46,0.05597719]
[1764609970303,5.80921703,124.48,124.46,0.05597719]
[1764609970499,13.04021703,124.48,124.46,0.05597719]
[1764609970692,5.80921703,124.48,124.46,0.05597719]
[1764609972398,7.2311,124.47,124.46,0.05597719]
[1764609972602,7.2311,124.47,124.43,7.50057126]
[1764609972802,7.2311,124.47,124.42,7.50057126]
[1764609972803,3.41010436,124.46,124.42,7.50057126]
[1764609973605,0.05430863,124.45,124.43,0.06065113]
[1764609975907,7.28660863,124.45,124.43,0.06065113]
[1764609977503,0.05430863,124.45,124.43,7.56122239]
[1764609986206,0.05430863,124.45,124.44,7.50057126]
[1764609986417,0.05430863,124.45,124.43,7.56122239]
[1764609987015,0.05430863,124.45,124.44,14.73347126]
[1764609987215,5.81023079,124.51,124.44,10.00076168]
[1764609987424,2.40012643,124.5,124.45,7.49614432]
[1764609987720,2.40012643,124.49,124.45,7.49614432]
[1764609987921,5.81023079,124.5,124.46,7.49614432]
[1764609988221,2.40012643,124.49,124.47,0.05643448]
[1764609988420,9.63012643,124.49,124.47,0.05643448]
[1764609990811,7.2305,124.48,124.47,0.05643448]
[1764609995438,7.2305,124.48,124.45,7.49614432]
[1764609995439,121.41010436,124.49,124.45,7.49614432]
[1764609995728,3.41010436,124.46,124.42,7.49614432]
[1764609996025,3.41010436,124.44,124.42,7.49614432]
[1764609996229,3.41010436,124.44,124.41,7.49614432]
[1764609996621,3.46512556,124.44,124.41,7.55697266]
[1764609997826,10.69802556,124.44,124.42,7.49614432]
[1764609998228,10.69802556,124.44,124.41,7.55697266]
[1764609998429,10.69802556,124.44,124.42,7.49614432]
[1764609998937,7.2334,124.43,124.41,7.55697266]
[1764609999829,10.69802556,124.44,124.41,7.55697266]
[1764610005634,13.09542845,124.44,124.41,7.55697266]
[1764610005836,2.45242409,124.44,124.41,14.79137266]
[1764610006034,0.0550212,124.44,124.42,7.49614432]
[1764610006939,0.0550212,124.44,124.41,14.79137266]
[1764610007739,7.2879212,124.44,124.41,14.79137266]
[1764610008442,0.0550212,124.44,124.42,14.72994432]
[1764610009249,0.0550212,124.44,124.43,7.49614432]
[1764610009433,0.0550212,124.44,124.43,14.72954432]
[1764610009635,115.3918716,124.45,124.43,10.00076168]
[1764610009939,7.231,124.48,124.43,10.00076168]
[1764610010141,7.231,124.48,124.45,7.48096411]
[1764610010547,7.231,124.48,124.45,7.53216897]
[1764610011045,7.23,124.49,124.45,14.76436897]
[1764610012546,9.62594834,124.51,124.46,7.48096411]
[1764610012753,7.2293,124.51,124.46,7.48096411]
[1764610013051,5.8067527,124.51,124.46,7.48096411]
[1764610013250,3.41010436,124.51,124.46,7.48096411]
[1764610013447,5.8067527,124.51,124.46,7.48096411]
[1764610013749,3.41010436,124.51,124.46,7.48096411]
[1764610014053,5.8067527,124.51,124.46,7.48096411]
[1764610014252,3.41010436,124.51,124.46,7.48096411]
[1764610014550,7.2294,124.5,124.46,7.48096411]
[1764610015552,7.2294,124.5,124.46,14.71266411]
[1764610017256,3.41010436,124.51,124.47,7.231]
[1764610017457,2.39664834,124.52,124.48,0.054881]
[1764610017647,5.8067527,124.53,124.48,7.53584511]
[1764610018447,2.39664834,124.53,124.48,7.53584511]
[1764610018752,2.39664834,124.53,124.5,7.2294]
[1764610019149,9.62424834,124.54,124.48,7.53584511]
[1764610019552,7.2276,124.54,124.48,7.53584511]
[1764610020243,7.2276,124.54,124.49,7.48096411]
[1764610021456,7.2276,124.54,124.5,7.229]
[1764610021654,7.2276,124.54,124.51,0.05147718]
[1764610021856,7.2262,124.56,124.51,7.53244129]
[1764610022443,7.2262,124.56,124.52,7.48096411]
[1764610022849,115.3918716,124.57,124.52,7.48096411]
[1764610023759,115.3918716,124.57,124.53,7.2274]
[1764610023948,115.3918716,124.57,124.54,0.05451599]
[1764610024451,115.3918716,124.57,124.55,7.2261]
[1764610024956,115.3918716,124.57,124.54,0.05451599]
[1764610025557,184.3718716,124.61,124.54,112.47181599]
[1764610025757,184.3718716,124.61,124.54,188.9327801]
[1764610027446,184.3718716,124.61,124.57,7.2248]
[1764610027646,5.07716019,124.63,124.58,0.05384674]
[1764610028145,12.29916019,124.63,124.58,0.05384674]
[1764610030359,115.3918716,124.62,124.58,0.05384674]
[1764610030855,7.2231,124.61,124.58,0.05384674]
[1764610031453,7.2237,124.6,124.58,0.05384674]
[1764610036356,76.1637,124.6,124.58,0.05384674]
[1764610036857,7.2252,124.58,124.53,7.2275]
[1764610037062,120.71395989,124.59,124.52,68.96]
[1764610037663,115.3918716,124.58,124.52,68.96]
[1764610038057,0.06017984,124.56,124.54,0.05774448]
[1764610043571,0.06017984,124.56,124.54,7.28444448]
[1764610043864,0.06017984,124.56,124.54,0.05774448]
[1764610044065,122.6150716,124.61,124.57,7.225]
[1764610045065,122.6150716,124.61,124.58,0.05135108]
[1764610053372,7.2236,124.6,124.58,0.05135108]
[1764610055477,115.3918716,124.61,124.58,0.05135108]
[1764610056582,7.2236,124.61,124.58,7.27595108]
[1764610056773,5.07716019,124.63,124.58,7.27595108]
[1764610057370,7.2224,124.62,124.58,0.05135108]
[1764610058278,5.07716019,124.63,124.58,7.53231519]
[1764610058668,5.07716019,124.63,124.58,0.05135108]
[1764610058871,5.07716019,124.63,124.59,7.48096411]
[1764610059072,5.07716019,124.63,124.58,0.05135108]
[1764610059274,5.07716019,124.63,124.58,7.53231519]
[1764610060377,5.07716019,124.63,124.59,7.48096411]
[1764610060378,12.29906019,124.63,124.59,7.48096411]
[1764610060675,12.29906019,124.63,124.58,14.75701519]
[1764610060979,12.29906019,124.63,124.59,7.48096411]
[1764610061368,12.29906019,124.63,124.59,14.70476411]
[1764610064177,12.29906019,124.63,124.6,7.48096411]
[1764610065379,5.07716019,124.63,124.6,14.70446411]
[1764610065583,5.07716019,124.63,124.61,7.48096411]
[1764610065779,5.07716019,124.63,124.61,7.53212352]
[1764610066078,5.07716019,124.63,124.61,14.75502352]
[1764610066781,5.07716019,124.63,124.62,7.48096411]
[1764610067178,2.87281055,124.63,124.61,7.53212352]
[1764610067579,2.87281055,124.63,124.61,0.05115941]
[1764610068174,7.2224,124.62,124.61,0.05115941]
[1764610068981,127.93635989,124.62,124.61,0.05115941]
[1764610070285,7.2231,124.61,124.57,7.48096411]
[1764610070582,7.2231,124.61,124.56,7.2257]
[1764610070778,7.2231,124.61,124.57,7.47471678]
[1764610070979,7.2231,124.61,124.56,14.70041678]
[1764610071179,0.05171848,124.6,124.57,7.28501812]
[1764610071883,0.05171848,124.6,124.57,14.7597349]
[1764610072084,0.05171848,124.6,124.57,7.5344349]
[1764610073885,7.27541848,124.6,124.57,7.5344349]
[1764610074087,5.37380677,124.6,124.57,0.05971812]
[1764610076377,7.2245,124.59,124.57,0.05971812]
[1764610079979,5.37380677,124.6,124.57,0.05971812]
[1764610080487,3.45476772,124.6,124.57,0.05971812]
[1764610080693,10.67836772,124.6,124.57,0.05971812]
[1764610083301,0.05171848,124.6,124.57,7.28491812]
[1764610083691,0.05171848,124.6,124.57,14.7596349]
[1764610085089,0.05171848,124.6,124.58,7.47471678]
[1764610085595,0.05171848,124.6,124.59,7.2241]
[1764610085794,0.05171848,124.6,124.59,14.69881678]
[1764610086888,0.05171848,124.6,124.59,7.2241]
[1764610087095,0.05171848,124.6,124.59,17.22486168]
[1764610087396,0.05171848,124.6,124.59,20.62791092]
[1764610088193,0.05171848,124.6,124.59,25.62463378]
[1764610088691,0.05171848,124.6,124.59,27.22463378]
[1764610089492,2.87281055,124.63,124.62,7.2224]
[1764610089691,2.87281055,124.63,124.62,17.18586798]
[1764610089889,7.2191,124.68,124.62,9.96346798]
[1764610090085,3.40304924,124.69,124.65,7.2205]
[1764610090285,3.40304924,124.69,124.66,0.05352899]
[1764610090490,3.40304924,124.7,124.66,0.05352899]
[1764610090690,185.66792014,124.72,124.66,0.05352899]
[1764610090887,187.67492084,124.72,124.66,0.05352899]
[1764610091294,7.2172,124.71,124.66,0.05352899]
[1764610091486,184.2718716,124.72,124.66,0.05352899]
[1764610091689,112.2064,124.78,124.67,112.3012]
[1764610091894,3.40304924,124.74,124.69,7.2182]
[1764610092197,3.40304924,124.75,124.71,0.05834902]
[1764610093403,10.61814924,124.75,124.71,0.05834902]
[1764610094005,7.2156,124.74,124.71,0.05834902]
[1764610094305,206.72425621,124.77,124.71,0.05834902]
[1764610094306,3.40304924,124.73,124.71,0.05834902]
[1764610094801,10.61924924,124.73,124.71,0.05834902]
[1764610095706,10.61924924,124.73,124.66,7.2199]
[1764610095707,7.2172,124.72,124.66,7.2199]
[1764610095906,3.40304924,124.71,124.66,7.2199]
[1764610096606,0.05097392,124.7,124.67,0.06105073]
[1764610099914,115.3918716,124.69,124.67,0.06105073]
[1764610102007,115.3918716,124.68,124.64,7.2212]
[1764610102209,3.40304924,124.67,124.64,7.2212]
[1764610102409,3.40304924,124.67,124.61,112.3501]
[1764610103115,0.0560821,124.65,124.63,7.28107149]
[1764610103516,3.45913134,124.65,124.63,0.05927149]
[1764610106724,0.0560821,124.65,124.63,7.28097149]
[1764610110231,0.0560821,124.65,124.63,0.05927149]
[1764610111333,0.0560821,124.65,124.63,7.28097149]
[1764610111526,0.0560821,124.65,124.63,0.05927149]
[1764610112225,3.45913134,124.65,124.63,0.05927149]
[1764610112629,10.67983134,124.65,124.63,0.05927149]
[1764610114021,0.0560821,124.65,124.63,0.05927149]
[1764610118628,7.2768821,124.65,124.63,0.05927149]
[1764610119630,0.0560821,124.65,124.63,0.05927149]
[1764610119937,112.2411,124.75,124.65,112.3209]
[1764610119938,3.40304924,124.73,124.65,112.3209]
[1764610120227,3.40304924,124.73,124.65,192.03549868]
[1764610120430,176.97534924,124.75,124.67,3.40304924]
[1764610120935,0.05328279,124.72,124.7,0.05681985]
[1764610121327,7.26998279,124.72,124.7,0.05681985]
[1764610124536,0.05328279,124.72,124.7,0.05681985]
[1764610124941,115.44515439,124.72,124.7,0.05681985]
[1764610127944,115.44515439,124.72,124.7,7.27451985]
[1764610130943,115.44515439,124.72,124.71,7.2172]
[1764610131333,0.05328279,124.72,124.71,7.2172]
[1764610131532,0.05328279,124.72,124.7,7.27451985]
[1764610132045,0.05328279,124.72,124.7,0.05681985]
[1764610137548,3.40304924,124.71,124.7,0.05681985]
[1764610137750,118.79492084,124.71,124.7,0.05681985]
[1764610137947,126.01212084,124.71,124.7,0.05681985]
[1764610138454,118.79492084,124.71,124.66,14.64592085]
[1764610139358,122.6090716,124.71,124.67,0.05986221]
[1764610139949,115.3918716,124.71,124.67,7.27926221]
[1764610140554,115.3918716,124.71,124.67,0.05986221]
[1764610141446,115.3918716,124.71,124.68,7.2188]
[1764610143343,0.05328279,124.72,124.68,7.42602085]
[1764610143547,0.05328279,124.72,124.69,7.42602085]
[1764610144349,0.05328279,124.72,124.7,7.2175]
[1764610144548,0.05328279,124.72,124.7,7.27126015]
[1764610150158,0.05328279,124.72,124.7,0.05376015]
[1764610152362,0.05328279,124.72,124.7,7.27136015]
[1764610152658,0.05328279,124.72,124.7,14.697381]
[1764610153254,7.2143,124.77,124.7,7.479781]
[1764610153460,68.8,124.8,124.72,7.42602085]
[1764610153661,7.213,124.79,124.74,7.2154]
[1764610153959,68.8,124.8,124.74,7.2154]
[1764610154163,0.05537427,124.78,124.76,0.05146262]
[1764610158765,7.26857427,124.78,124.76,0.05146262]
[1764610159267,115.3918716,124.77,124.76,0.05146262]
[1764610170467,112.218,124.77,124.71,7.42602085]
[1764610170771,5.3064527,124.75,124.71,7.42602085]
[1764610170962,7.2155,124.74,124.71,7.42602085]
[1764610171368,304.3126527,124.76,124.7,7.42602085]
[1764610171569,7.2161,124.73,124.72,0.05073902]
[1764610172079,0.05410559,124.74,124.72,0.05073902]
[1764610172267,0.05410559,124.74,124.72,7.47675987]
[1764610172781,0.05410559,124.74,124.72,7.26733902]
[1764610173073,0.05410559,124.74,124.72,14.69335987]
[1764610173271,0.05410559,124.74,124.73,7.216]
[1764610177381,0.05410559,124.74,124.72,7.47675987]
[1764610177581,0.05410559,124.74,124.72,0.05073902]
[1764610178270,7.216,124.73,124.72,0.05073902]
[1764610178979,7.2167,124.72,124.69,0.20815]
[1764610179984,12.5225527,124.73,124.69,0.25872429]
[1764610180178,5.3064527,124.73,124.69,0.25872429]
[1764610180375,12.5237527,124.71,124.69,0.25872429]
[1764610180587,5.36729852,124.71,124.65,7.42602085]
[1764610180770,5.36729852,124.71,124.63,9.96346798]
[1764610180771,5.3064527,124.68,124.64,7.42602085]
[1764610181490,0.05275918,124.67,124.65,0.06061377]
[1764610184874,5.3064527,124.66,124.65,0.06061377]
[1764610185484,123.3064527,124.66,124.65,0.06061377]
[1764610186084,12.5266527,124.66,124.61,7.42602085]
[1764610186289,118.0,124.65,124.61,7.42602085]
[1764610186980,0.0530161,124.64,124.62,0.05758539]
[1764610187577,7.2743161,124.64,124.62,0.05758539]
[1764610187781,12.5807688,124.64,124.62,0.05758539]
[1764610191180,117.6937688,124.64,124.56,7.42602085]
[1764610191385,5.3064527,124.62,124.56,7.42602085]
[1764610191579,7.223,124.61,124.56,7.42602085]
[1764610192188,0.05904575,124.6,124.57,0.05681512]
[1764610192892,118.0,124.59,124.57,0.05681512]
[1764610194394,125.2245,124.59,124.57,0.05681512]
[1764610199696,7.2247,124.58,124.57,0.05681512]
[1764610200986,118.0,124.59,124.57,0.05681512]
[1764610204993,125.2243,124.59,124.57,0.05681512]
[1764610209505,118.0,124.59,124.57,0.05681512]
[1764610211199,121.40229426,124.59,124.57,0.05681512]
[1764610211696,128.62649426,124.59,124.57,0.05681512]
[1764610212302,7.2247,124.58,124.57,0.05681512]
[1764610212502,190.24229426,124.59,124.52,7.2277]
[1764610213006,190.24229426,124.59,124.53,7.2275]
[1764610213507,0.06090165,124.57,124.55,0.06141891]
[1764610214399,7.28620165,124.57,124.55,0.06141891]
[1764610215805,0.06090165,124.57,124.55,0.06141891]
[1764610217316,0.06090165,124.57,124.55,7.28781891]
[1764610218030,0.06090165,124.57,124.55,0.06141891]
[1764610220324,0.06090165,124.57,124.55,7.28781891]
[1764610221126,0.06090165,124.57,124.55,0.06141891]
[1764610222423,7.28640165,124.57,124.55,0.06141891]
[1764610225231,0.06090165,124.57,124.55,7.48743976]
[1764610225526,0.06090165,124.57,124.55,0.06141891]
[1764610225527,121.46319591,124.57,124.55,0.06141891]
[1764610226328,128.68859591,124.57,124.55,0.06141891]
[1764610226523,118.0,124.56,124.55,0.06141891]
[1764610226729,118.0,124.56,124.52,7.2279]
[1764610226929,3.40229426,124.54,124.52,7.2279]
[1764610227530,3.40229426,124.54,124.5,7.42602085]
[1764610227732,3.40229426,124.52,124.51,0.05519494]
[1764610227926,10.63049426,124.52,124.51,0.05519494]
[1764610229938,7.2293,124.51,124.47,7.42602085]
[1764610230239,3.40229426,124.5,124.46,7.42602085]
[1764610230626,3.40229426,124.5,124.45,76.28602085]
[1764610230826,7.23,124.49,124.45,7.42602085]
[1764610231035,0.06000208,124.48,124.46,0.05583716]
[1764610232431,3.46229634,124.48,124.46,0.05583716]
[1764610232832,128.69329634,124.48,124.46,0.05583716]
[1764610234927,118.0,124.47,124.42,7.42602085]
[1764610235136,3.40229426,124.46,124.41,7.42602085]
[1764610236038,0.05433361,124.45,124.42,0.05365922]
[1764610238044,0.05433361,124.45,124.42,7.28755922]
[1764610244053,0.05433361,124.45,124.43,7.2332]
[1764610244749,0.05433361,124.45,124.42,0.05365922]
[1764610245850,3.40229426,124.44,124.42,0.05365922]
[1764610246050,3.40229426,124.44,124.36,112.5788]
[1764610246250,3.40229426,124.41,124.36,112.5788]
[1764610246553,3.40229426,124.41,124.38,7.2359]
[1764610246950,3.45593392,124.41,124.38,7.28953189]
[1764610247156,3.40229426,124.39,124.38,0.05363189]
[1764610247356,3.45593392,124.41,124.38,0.05363189]
[1764610247655,0.05363966,124.41,124.38,0.05363189]
[1764610248447,0.05363966,124.41,124.38,7.28993189]
[1764610248754,0.05363966,124.41,124.38,0.05363189]
[1764610250056,0.05363966,124.41,124.38,7.28983189]
[1764610250856,0.05363966,124.41,124.39,7.2356]
[1764610251250,3.40229426,124.4,124.38,0.05363189]
[1764610251459,0.05363966,124.41,124.38,0.05363189]
[1764610252358,0.05363966,124.41,124.39,7.2357]
[1764610258063,0.05363966,124.41,124.38,0.05363189]
[1764610258262,0.05363966,124.41,124.34,188.92532085]
[1764610258263,3.40229426,124.4,124.34,7.42602085]
[1764610258561,3.40229426,124.37,124.32,7.42602085]
[1764610259063,3.40229426,124.39,124.33,7.2392]
[1764610259448,0.06092034,124.37,124.35,0.05973925]
[1764610260153,3.4632146,124.37,124.35,0.05973925]
[1764610260462,3.4632146,124.37,124.31,7.42602085]
[1764610260664,3.40229426,124.34,124.3,7.42602085]
[1764610261055,10.64149426,124.34,124.3,7.42602085]
[1764610261253,3.40229426,124.34,124.28,7.42602085]
[1764610261450,3.40229426,124.34,124.27,7.42602085]
[1764610261656,0.05856285,124.32,124.29,7.29595269]
[1764610262265,3.46085711,124.32,124.29,0.05455269]
[1764610262463,0.05856285,124.32,124.29,0.05455269]
[1764610263362,7.29866285,124.32,124.29,0.05455269]
[1764610263556,0.05856285,124.32,124.29,0.05455269]
[1764610267368,0.05856285,124.32,124.29,7.29555269]
[1764610268865,0.05856285,124.32,124.29,0.05455269]
[1764610271371,0.05856285,124.32,124.29,7.29585269]
[1764610272568,0.05856285,124.32,124.29,0.05455269]
[1764610272768,118.05856285,124.32,124.29,0.05455269]
[1764610273273,125.29846285,124.32,124.29,0.05455269]
[1764610273469,118.05856285,124.32,124.29,0.05455269]
[1764610274275,118.05856285,124.32,124.29,7.29615269]
[1764610274474,118.05856285,124.32,124.29,0.05455269]
[1764610277369,125.29846285,124.32,124.29,0.05455269]
[1764610277774,118.05856285,124.32,124.25,68.94]
[1764610278180,7.2411,124.3,124.25,7.2435]
[1764610278482,7.2411,124.3,124.22,120.13422085]
[1764610278885,0.05635121,124.27,124.22,120.13422085]
[1764610279279,0.05635121,124.27,124.22,112.7082]
[1764610279479,0.05635121,124.27,124.25,7.2438]
[1764610285390,0.05635121,124.27,124.22,7.2451]
[1764610286387,7.2436,124.26,124.22,7.2451]
[1764610290594,0.05635121,124.27,124.22,7.2451]
[1764610290793,0.05635121,124.27,124.21,181.695]